[Event "Chhattisgarh Masters GM 2022"]
[Site "Chhattisgarh"]
[Date "2022.09.19"]
[Round "1.8"]
[White "Ravi, Kumar"]
[Black "Venkatesh, M.R."]
[Result "1-0"]
[ECO "A36"]
[WhiteElo "2156"]
[BlackElo "2481"]
[Annotator "TA"]
[PlyCount "82"]
[EventDate "2022.09.19"]
[EventCountry "IND"]
[SourceTitle "playchess.com"]
[Source "ChessBase"]
[SourceQuality "1"]
[TimeControl "5400+30"]

{[%evp 11,82,-4,16,10,17,0,16,15,8,0,21,16,17,-12,5,0,59,0,43,-28,-40,-103,-19,-14,0,6,66,71,107,110,90,79,68,68,62,63,64,38,47,10,20,0,119,99,117,67,116,35,156,134,129,30,40,49,55,48,51,0,0,0,0,0,0,0,461,468,1131,1108,29985,0,0,0,29985]} 1. c4 {[%emt 0:00:25]} c5 {[%emt 0:02:41]} 2. Nc3 {[%emt 0:00:41]} Nc6 {[%emt 0:00:06]} 3. g3 {[%emt 0:00:30]} g6 {[%emt 0:00:05]} 4. Bg2 {[%emt 0:00:12]} Bg7 {[%emt 0:00:06]} 5. e4 {[%emt 0:00:57]} d6 {[%emt 0:03:08]} 6. Nge2 {[%emt 0:00:52]} Bd7 {[%emt 0:00:29] MISSDEEP-a7-a6 20 (a7-a6) (=20)} 7. d3 {[%emt 0:01:02] CPLX 2.0. A36: Symmetrical English vs ...g6: 4 Bg2 Bg7.} a6 {[%emt 0:00:49] CPLX 2.1 7 (h7-h5) (=14)} 8. Be3 {[%emt 0:09:20] CPLX 2.1 17 (a2-a3) (=9)} Nd4 {[%emt 0:02:18] [#] CPLX 2.2 16 (Ra8-b8) (=14)} 9. Rb1 $146 {[%emt 0:03:03] BESTDEEP} ({Predecessor:} 9. h3 e6 10. Qd2 Ne7 11. O-O Nec6 12. Bh6 O-O 13. Bxg7 Kxg7 14. f4 Nxe2+ 15. Nxe2 {0-1 (35) Novikov,M (2234)-Kagirov,R (2312) Berdsk 2009}) 9... h5 {[%emt 0:13:21] CPLX 2.5} 10. h3 {[%emt 0:07:32] CPLX 2.6 8 (0-0) (=6)} Rb8 {[%emt 0:10:50] CPLX 2.6 21 (b7-b5) (=13)} 11. Qd2 {[%emt 0:07:14] CPLX 2.6 5 (b2-b4) (=6)} b6 {[%emt 0:22:09] CPLX 2.6 1 (b7-b5) (=11)} 12. f4 {[%emt 0:17:54] CPLX 2.6 29 (b2-b4) (=10)} Nh6 {[%emt 0:01:44] CPLX 2.5 17 (e7-e6) (=12)} 13. b4 {[%emt 0:08:09] CPLX 2.5 5 (Qd2-c1) (=9)} Kf8 {[%emt 0:24:51] RELBLUND 59 (h5-h4) (=18)} (13... h4 $11) 14. Bf2 {[%emt 0:09:32] CPLX 2.8 59 (0-0) (=15)} (14. O-O $14) 14... Kg8 {[%emt 0:01:17] CPLX 2.7 43 (h5-h4) (=20)} (14... h4 $5) 15. O-O {[%emt 0:12:27] RELBLUND 71 (a2-a4) (=22)} (15. a4 $14) 15... Bxh3 $11 {[%emt 0:06:14] EASY} 16. Nxd4 {[%emt 0:05:21] CPLX 3.7 63 (Bf2xd4) (=26)} (16. Bxd4 $15 Bxg2 17. Bxg7 Bxf1 18. Bxh8 Bxe2 19. f5) 16... Bxg2 {[%emt 0:01:56] RELBLUND 84 (c5xd4) (=24)} ({Black should try} 16... cxd4 $17 17. Bxh3 dxc3) 17. Nc6 {[%emt 0:01:34] CPLX 3.9=>BLUNDERREACT} Qd7 {[%emt 0:00:03] MISS-Bg7xc3 14 (Bg7xc3) (=24)} 18. Nxe7+ {[%emt 0:01:31] CPLX 4.6} (18. Nxb8 $2 Qh3 19. Bxc5 Qh1+ 20. Kf2 Qh2 $19) (18. Kxg2 Qxc6 19. Nd5 Rb7 $15) 18... Qxe7 {[%emt 0:00:05] RELBLUND 60 (Kg8-h7) (=26)} (18... Kh7 $1 $11 19. Kxg2 Bxc3 20. Qxc3 Qxe7) 19. Nd5 $36 {[%emt 0:01:28][%mdl 2048] White is on the roll. EASY} Qd8 {[%emt 0:00:19] CPLX 4.5 36 (Qe7-d7) (=27)} 20. Kxg2 {[%emt 0:00:14] EASY} Ng4 {[%emt 0:00:19] CPLX 2.9 0 (Kg8-h7) (=25)} 21. Qe2 {[%emt 0:02:01] CPLX 3.7 11 (f4-f5) (=18)} Nxf2 {[%emt 0:03:32] DEEPSTRONG} 22. Qxf2 {[%emt 0:01:35] RECAPT} Bd4 {[%emt 0:00:29] CPLX 2.8} 23. Qf3 {[%emt 0:00:40] Threatens to win with f5. CPLX 3.5} Kg7 {[%emt 0:00:41] CPLX 3.2} 24. Rh1 {[%emt 0:02:56] CPLX 3.5 26 (a2-a4) (=16)} b5 {[%emt 0:00:42] CPLX 4.0} 25. g4 {[%emt 0:01:00][%cal Rg4h5] BESTDEEP} h4 {[%emt 0:01:25] CPLX 4.7} 26. g5 {[%emt 0:00:39] CPLX 4.7 20 (Kg2-h3) (=16)} bxc4 {[%emt 0:01:03] MISSDEEP-c5xb4 119 (c5xb4) (=24)} (26... cxb4 $11 {keeps the balance.} 27. Rh3 Rc8) 27. dxc4 $16 {[%emt 0:00:14] RECAPT} Rh5 {[%emt 0:00:35] CPLX 4.7 18 (Qd8-d7) (=23)} 28. Rh3 {[%emt 0:02:07] CPLX 4.8 50 (a2-a3) (=17)} (28. a3 $16) 28... Qd7 {[%emt 0:00:12] CPLX 4.8 49 (c5xb4) (=25)} (28... cxb4 $14 29. Qd3 Bc3) 29. Rbh1 {[%emt 0:00:50] CPLX 5.5 81 (Qf3-e2) (=19)} (29. Qe2 $16) 29... Rbh8 {[%emt 0:00:29] RELBLUND 121 (Qd7-a4) (=29)} (29... Qa4 $1 $14 30. Qb3 (30. Rxh4 Qxa2+ 31. Kg3 Rxh4 $11) (30. Qe2 cxb4 31. Rb1 Kg8 $14) 30... Qxb3 31. axb3 cxb4) 30. Qd1 {[%emt 0:00:43] BESTDEEP} Qe6 {[%emt 0:00:55] CPLX 6.1 0 (Bd4-b2) (=27)} 31. Kf3 {[%emt 0:00:51] Active counter play! MISS-Rh1-e1 99 (Rh1-e1) (=22)} (31. Re1 $16) 31... f6 $11 {[%emt 0:01:28] DEEPSTRONG=>BLUNDERREACT} ({Weaker is} 31... Re8 32. Qe1 Reh8 33. bxc5 (33. Rxh4 Rxh4 34. Rxh4 cxb4 $11) 33... dxc5 34. Rxh4 $18) 32. gxf6+ {[%emt 0:01:36] CPLX 6.4 0 (b4xc5) (=21)} Bxf6 {[%emt 0:00:01] RECAPT} 33. bxc5 {[%emt 0:00:48] Chess con chili. EASY} dxc5 {[%emt 0:00:25] RECAPT} 34. Qd3 {[%emt 0:00:43] MISSDEEP-Qd1-e2 51 (Qd1-e2) (=21)} ({Better is} 34. Qe2 $1 $14) 34... Bd4 {[%emt 0:01:12] EASY} 35. Qb1 {[%emt 0:00:28] CPLX 5.9 0 (e4-e5) (=21)} Qf7 {[%emt 0:00:41] Prevents Qb7. CPLX 6.5 0 (g6-g5) (=23)} 36. Ke2 {[%emt 0:00:37] CPLX 5.8 0 (Qb1-f1) (=20)} Qd7 {[%emt 0:00:58] CPLX 4.7 0 (Qf7-e6) (=22)} (36... Rxd5 $2 37. cxd5 g5 38. fxg5 $18) 37. f5 {[%emt 0:00:29] Strongly threatening Nf4. CPLX 5.3 0 (Ke2-d2) (=19)} gxf5 $2 {[%emt 0:00:18][%mdl 8192] [#] MISSDEEP-Rh8-e8 400 (Rh8-e8) (=34)} (37... Re8 $1 $11 {and Black stays safe.} 38. Kd2 (38. f6+ Bxf6 39. Nxf6 Kxf6 $15) 38... gxf5 39. Rxh4 Rxh4 40. Rxh4 Kg8) 38. Rb3 $1 $18 {[%emt 0:00:05][%cal Bh3b3,Bb3b7,Bb7b6][%mdl 32] And now Rb7 would win. DEEPSTRONG=>BLUNDERREACT} Qe8 {[%emt 0:00:43] BEVAL 400 (Qd7-e6) (=45)} (38... Qe6 $142 39. Rb7+ Kf8 40. Rb8+ Kg7 41. Rg1+ Bxg1 42. Qxg1+ Qg6 43. Rb7+ (43. Qa1+ Kf7 $11) 43... Kh6) 39. Rb7+ {[%emt 0:00:33] BEVAL} Kh6 {[%emt 0:00:01] RELBLUND 400 (Kg7-f8) (=55)} 40. Rb6+ {[%emt 0:00:42] CPLX 6.4 400 (Qb1-c1) (=29)} Kh7 $1 {[%emt 0:00:21] RELBLUND} 41. Rb7+ {[%emt 0:00:34] RELBLUND} Kh6 $1 {[%emt 0:00:02] Weighted Error Value: White=0.40/Black=0.44} 1-0

[Event "Chhattisgarh Masters GM 2022"]
[Site "Chhattisgarh"]
[Date "2022.09.19"]
[Round "1.8"]
[White "Pawar, Harshit"]
[Black "Harshavardhan G B"]
[Result "0-1"]
[ECO "B23"]
[WhiteElo "2111"]
[BlackElo "2429"]
[Annotator "TA"]
[PlyCount "72"]
[EventDate "2022.09.19"]
[EventCountry "IND"]
[SourceTitle "playchess.com"]
[Source "ChessBase"]
[SourceQuality "1"]
[TimeControl "5400+30"]

{[%evp 9,72,0,0,0,0,0,0,0,0,0,2,-21,-20,-21,-5,-31,-29,-39,-30,-24,0,-9,0,0,5,12,9,5,6,8,2,0,14,-28,-28,-29,-28,-53,-40,-47,0,0,0,0,70,-103,49,62,57,-579,-579,-501,-556,-551,-547,-473,-209,-215,-106,-640,-506,-29986,-29987,-29985,-29986]} 1. e4 {[%emt 0:00:07]} c5 {[%emt 0:01:08]} 2. Nc3 {[%emt 0:00:10]} Nc6 {[%emt 0:00:12]} 3. Bb5 {[%emt 0:00:08]} Nd4 {[%emt 0:00:19]} 4. Bc4 {[%emt 0:00:02]} a6 {[%emt 0:00:20]} 5. a4 {[%emt 0:01:16]} e6 {[%emt 0:00:35] CPLX 2.0} 6. Nge2 {[%emt 0:00:22] CPLX 2.0. B23: Closed Sicilian: Lines without g3.} Nf6 {[%emt 0:00:33] CPLX 2.2} 7. O-O {[%emt 0:00:33] BESTDEEP} d5 {[%emt 0:00:36] EASY} 8. exd5 {[%emt 0:00:03] CPLX 2.9. The position is equal.} exd5 {[%emt 0:00:05] RECAPT} 9. Ba2 {[%emt 0:00:11] BESTDEEP} (9. Nxd4 cxd4 10. Nxd5 Nxd5 $15) 9... Ne6 {[%emt 0:00:12] BESTDEEP 9...Nxe2+ gains popularity.} 10. d4 {[%emt 0:05:49] CPLX 2.0 23 (d2-d3) (=5)} c4 {[%emt 0:05:54] CPLX 2.1} 11. Nf4 {[%emt 0:03:04] CPLX 2.0 1 (b2-b3) (=4)} Be7 {[%emt 0:05:51] CPLX 2.2 16 (Bf8-b4) (=2)} 12. Nce2 {[%emt 0:10:18] CPLX 2.3 26 (b2-b3) (=7)} O-O {[%emt 0:04:15] [#] CPLX 2.2 2 (Ne6-c7) (=2)} 13. c3 $146 {[%emt 0:01:07] BESTDEEP} ({Predecessor:} 13. Bb1 Nxf4 14. Bxf4 Nh5 15. c3 f5 16. Be5 g6 17. Nf4 Nxf4 18. Bxf4 g5 19. Be5 {1-0 (40) Farre I Benseny,M (1908)-Carbonell Sancho,M (2187) Salobrena 2020}) 13... Nxf4 {[%emt 0:02:06] CPLX 2.3 9 (Rf8-e8) (=3)} 14. Bxf4 {[%emt 0:01:06] RECAPT} Bf5 {[%emt 0:00:38] CPLX 2.0 24 (b7-b5) (=5)} 15. Ng3 {[%emt 0:01:43] CPLX 2.0 9 (Rf1-e1) (=6)} Bg6 {[%emt 0:05:38] CPLX 2.3 9 (Bf5-d3) (=5)} 16. Bb1 {[%emt 0:01:59] CPLX 2.1} Bd6 {[%emt 0:03:55] CPLX 2.3 5 (Qd8-d7) (=5)} 17. Be5 {[%emt 0:06:46] CPLX 2.6} Ne4 {[%emt 0:12:14] BESTDEEP} 18. Nxe4 {[%emt 0:21:15] MISS-Bb1xe4 4 (Bb1xe4) (=5)} Bxe5 {[%emt 0:02:20] CPLX 3.4 1 (d5xe4) (=5)} 19. dxe5 {[%emt 0:02:40] RECAPT} dxe4 {[%emt 0:02:21] CPLX 2.9} 20. Qe2 {[%emt 0:01:10][%csl LRc4,LRe4] CPLX 2.2} Qd5 {[%emt 0:02:08] CPLX 2.1 14 (Rf8-e8) (=5)} 21. f4 {[%emt 0:02:18] CPLX 2.1 42 (Rf1-e1) (=7)} exf3 {[%emt 0:04:41] CPLX 2.5} 22. Rxf3 {[%emt 0:00:17] RECAPT} Rae8 {[%emt 0:02:21] CPLX 3.0 1 (Bg6xb1) (=5)} 23. Re3 {[%emt 0:01:04] CPLX 3.1 25 (Bb1xg6) (=7)} Qc5 {[%emt 0:02:59] CPLX 2.6 13 (Bg6xb1) (=5)} 24. Kh1 $1 {[%emt 0:00:53] CPLX 2.7} f5 {[%emt 0:01:30] CPLX 2.6 47 (Re8-e6) (=7)} (24... Re6 $15) 25. e6 $11 {[%emt 0:05:08] BESTDEEP} Bh5 $36 {[%emt 0:14:30][%mdl 2048] Black is pushing. BESTDEEP} 26. Qe1 {[%emt 0:03:42] And now Re5 would win. BESTDEEP} (26. Qxh5 $2 Qxe3 27. Bxf5 g6 28. Bxg6 hxg6 29. Qxg6+ Kh8 30. Qh5+ Kg7 31. Qg4+ Kh7 32. Qh4+ Kg6 33. Qg4+ Kh7 34. Qh4+ Kg7 35. Qg4+ Kh7 $19) 26... Qb6 {[%emt 0:03:19] RELBLUND 70 (Rf8-f6) (=10)} (26... Rf6 $11) 27. Ba2 $2 {[%emt 0:03:43] MISSDEEP-Re3-e5 173 (Re3-e5) (=14)} ({Much weaker is} 27. e7 $6 Rf7 28. Ba2 f4 $15) (27. Re5 $1 $14 {keeps the upper hand.}) 27... Qc6 $2 {[%emt 0:02:54] Black is more active. RELBLUND 152 (f5-f4) (=16)} (27... f4 $17 28. e7 (28. Re5 f3 $17) 28... fxe3 29. exf8=B Rxf8 30. Bxc4+ Kh8) 28. Qf1 $1 $14 {[%emt 0:04:05] DEEPSTRONG=>BLUNDERREACT} b5 $1 {[%emt 0:01:49] DEEPSTRONG} 29. Rae1 $2 {[%emt 0:00:29][%mdl 8192] [#] RELBLUND 400 (a4xb5) (=29)} (29. axb5 $14 {stays ahead.} axb5 30. b3 (30. e7 Rf7 $11)) 29... f4 $1 $19 {[%emt 0:01:17] CPLX 3.1=>BLUNDERREACT} 30. Re5 {[%emt 0:00:11] [#] EASY} f3 $1 {[%emt 0:00:36] DEEPSTRONG} 31. gxf3 {[%emt 0:08:40] BESTDEEP} Bxf3+ {[%emt 0:05:33] RECAPT} 32. Kg1 {[%emt 0:00:02] EASY} Bg4 {[%emt 0:00:27] MISSDEEP-Rf8-f6 264 (Rf8-f6) (=22)} (32... Rf6 $142 33. Bb1 Bg4) 33. Qf7+ {[%emt 0:02:07] DEEPSTRONG=>BLUNDERREACT} Kh8 {[%emt 0:04:07] Chess con chili. CPLX 5.3 109 (Rf8xf7) (=25)} (33... Rxf7 $19 {is more deadly.} 34. exf7+ Kxf7 35. Rxe8 Qc5+ 36. Kg2 Bd7) 34. R1e3 $2 {[%emt 0:04:39][%mdl 8192] RELBLUND 400 (Qf7-d7) (=38)} (34. Qd7 $17 Qf3 35. Qd2) 34... Bh3 {[%emt 0:08:24][%csl Gh3][%cal Rc6g2] CPLX 5.4 134 (Qc6-a8) (=29)} ({Weaker is} 34... Rxf7 35. exf7 Rf8 36. Re8 $17) 35. R3e4 {[%emt 0:04:25] RELBLUND 400 (Re3xh3) (=50)} (35. Rxh3 $19 Rxf7 36. exf7 Qg6+ 37. Rg3 Qxf7 38. Rf3 Qg6+ 39. Kf1) 35... Rxf7 {[%emt 0:00:16] EASY} 36. exf7 {[%emt 0:00:10] RECAPT} Qg6+ {[%emt 0:02:27] Weighted Error Value: White=0.69/Black=0.37} 0-1

[Event "Chhattisgarh Masters GM 2022"]
[Site "Chhattisgarh"]
[Date "2022.09.19"]
[Round "1.8"]
[White "Garv Rai"]
[Black "Utsab Chatterjee"]
[Result "0-1"]
[ECO "D00"]
[WhiteElo "2051"]
[BlackElo "2332"]
[Annotator "TA"]
[PlyCount "146"]
[EventDate "2022.09.19"]
[EventCountry "IND"]
[SourceTitle "playchess.com"]
[Source "ChessBase"]
[SourceQuality "1"]
[TimeControl "5400+30"]

{[%evp 9,146,0,8,-33,-22,-22,-14,-20,-20,-8,-12,-21,-21,-87,-93,-96,-87,-96,-83,-90,-83,-91,-40,-108,-49,-71,-39,-79,-40,-76,-76,-82,-79,-102,-96,-168,-132,-161,-134,-202,-181,-176,-141,-135,-135,-137,-138,-137,-136,-137,-135,-120,-111,-201,-182,-175,-198,-207,-161,-146,-123,-199,-194,-221,-216,-253,-223,-206,-169,-221,-17,-159,0,-225,-225,-329,-329,-415,-404,-729,-717,-700,-699,-684,-671,-650,-638,-1216,-1154,-1055,-990,-2416,-1564,-1468,-1420,-1303,-1310,-1213,-1093,-29961,-29965,-29971,-29973,-29974,-29975,-29975,-29976,-29976,-29977,-29979,-29978,-29978,-29979,-29979,-29979,-29979,-29980,-29980,-29981,-29982,-29983,-29982,-29981,-29981,-29982,-29982,-29983,-29983,-29984,-29984,-29985,-29985,-29986,-29987,-29988,-29989,-29990,-29991,-29992]} 1. d4 {[%emt 0:00:33]} d5 {[%emt 0:00:40]} 2. Bf4 {[%emt 0:00:03]} c5 {[%emt 0:00:54]} 3. e3 {[%emt 0:00:03]} Nc6 {[%emt 0:00:10]} 4. c3 {[%emt 0:00:11]} Bf5 {[%emt 0:00:37]} 5. Nd2 {[%emt 0:05:23]} e6 {[%emt 0:00:19] [#] CPLX 2.4 8 (Ng8-f6) (=8)} 6. Bb5 $146 {[%emt 0:05:52] CPLX 2.6 41 (Ng1-f3) (=41). D00: 1 d4 d5: Unusual lines.} ({Predecessor:} 6. Ngf3 Nf6 7. Nh4 Be4 8. Bb5 Qb6 9. a4 a6 10. Bxc6+ bxc6 11. O-O Bd3 12. Re1 cxd4 13. exd4 Be7 14. Nhf3 h6 {1-0 (48) Sjugirov,S (2662)-Robson,R (2670) chess24.com INT 2020}) 6... Qb6 {[%emt 0:04:06] BESTDEEP} 7. Qa4 {[%emt 0:00:51] CPLX 3.1} a6 {[%emt 0:09:53] CPLX 2.9 8 (c5xd4) (=5)} 8. Bxc6+ {[%emt 0:00:22] EASY. The position is equal.} Qxc6 {[%emt 0:00:33] RECAPT} 9. Qxc6+ {[%emt 0:00:40] RECAPT} bxc6 {[%emt 0:00:02] RECAPT} 10. Ngf3 {[%emt 0:00:14] CPLX 2.1 9 (Ng1-e2) (=10)} f6 {[%emt 0:00:15] BESTDEEP} 11. dxc5 {[%emt 0:18:31] RELBLUND 66 (h2-h4) (=19)} (11. h4 $11 {remains equal.}) 11... e5 $17 {[%emt 0:03:02] EASY} 12. Nxe5 {[%emt 0:07:11] CPLX 2.6 3 (Bf4-g3) (=17)} fxe5 {[%emt 0:00:10] RECAPT} 13. Bxe5 {[%emt 0:00:03] RECAPT} Kf7 {[%emt 0:09:59] MISS-Ng8-f6 13 (Ng8-f6) (=3)} (13... Bxc5 $2 14. Bxg7 Rb8 15. b4 $18) 14. b4 {[%emt 0:06:00] CPLX 2.4 7 (Be5-d4) (=14)} Be7 {[%emt 0:02:50] CPLX 2.5 7 (Ng8-f6) (=4)} 15. Nb3 {[%emt 0:00:43] CPLX 2.6 8 (a2-a4) (=13)} Bf6 {[%emt 0:02:17] CPLX 2.6 51 (Be7-d8) (=8)} ({Black should try} 15... Bd8 $17) 16. Bd4 {[%emt 0:01:02] [#] CPLX 2.9 68 (Be5xf6) (=18)} (16. Bxf6 $15 Nxf6 17. Nd4) 16... Ne7 {[%emt 0:05:32] MISSDEEP-Bf6-d8 59 (Bf6-d8) (=12)} (16... Bd8 $1 $17 17. O-O Nf6) 17. Kd2 {[%emt 0:01:28] CPLX 2.7 22 (Bd4xf6) (=19)} g5 {[%emt 0:04:20][%cal Bg7g5,Bg5g4][%mdl 32] CPLX 3.4 32 (Rh8-c8) (=14)} 18. Na5 {[%emt 0:02:25] CPLX 3.8 40 (f2-f3) (=20)} Rab8 {[%emt 0:02:42] CPLX 3.9 39 (g5-g4) (=16)} 19. a3 {[%emt 0:06:16] CPLX 4.0 36 (Rh1-f1) (=21)} g4 {[%emt 0:03:07] BESTDEEP} 20. Rae1 {[%emt 0:01:36] CPLX 3.9 6 (Bd4xf6) (=20)} Rhg8 {[%emt 0:04:31][%cal Bh8g8,Bg8g6,Bg6h6][%mdl 32] CPLX 3.9} 21. Rhg1 {[%emt 0:11:54] CPLX 3.9 23 (Bd4xf6) (=21)} Rg6 {[%emt 0:12:18] CPLX 3.9 6 (Bf6-h4) (=13)} 22. Ke2 {[%emt 0:17:26] CPLX 3.6 72 (Bd4xf6) (=24)} (22. Bxf6 $17 Rxf6 23. f3) 22... Rh6 {[%emt 0:08:59] CPLX 3.2 36 (Bf6xd4) (=14)} 23. Rh1 {[%emt 0:00:13] CPLX 3.3 29 (Bd4xf6) (=24)} Rg8 {[%emt 0:00:17] CPLX 3.3 27 (Bf6xd4) (=15)} 24. Reg1 {[%emt 0:04:44] CPLX 3.2 68 (Na5-b7) (=26)} (24. Nb7 $17) 24... Be4 {[%emt 0:04:04] CPLX 3.2 21 (Bf6xd4) (=15)} 25. Nb3 {[%emt 0:00:59] CPLX 3.3 0 (Bd4xf6) (=25)} Nf5 {[%emt 0:02:43] CPLX 3.3 35 (Bf6xd4) (=16)} 26. Bxf6 {[%emt 0:02:34] CPLX 3.9} Kxf6 {[%emt 0:04:38] RECAPT} 27. Nd2 {[%emt 0:00:18] DEEPSTRONG} Re8 {[%emt 0:07:18] Black has more active pieces. BESTDEEP} 28. Nxe4+ {[%emt 0:05:16] CPLX 2.9} Rxe4 {[%emt 0:00:02] RECAPT} 29. Kd3 {[%emt 0:00:36] CPLX 2.6 1 (Rg1-c1) (=21)} Kf7 {[%emt 0:03:04] CPLX 3.1 2 (Nf5-h4) (=14)} 30. Rc1 {[%emt 0:00:42] CPLX 3.0} Nh4 {[%emt 0:00:40] CPLX 3.0 9 (Rh6-e6) (=14)} 31. Rhg1 {[%emt 0:00:16] CPLX 2.8 90 (h2-h3) (=23)} (31. h3 $17) 31... Ng6 $19 {[%emt 0:00:09] CPLX 2.8} 32. Rh1 {[%emt 0:00:40] EASY} Ne5+ {[%emt 0:01:25] CPLX 2.8} 33. Ke2 {[%emt 0:00:38] CPLX 2.9} Nc4 {[%emt 0:01:03] CPLX 2.7 46 (a6-a5) (=14)} 34. Ra1 {[%emt 0:00:23] CPLX 2.7 0 (a3-a4) (=20)} Rhe6 {[%emt 0:00:42] CPLX 2.7 23 (Kf7-e6) (=14)} 35. Rhe1 {[%emt 0:00:40] CPLX 2.9 76 (a3-a4) (=22)} (35. a4 $17) 35... h5 {[%emt 0:00:33] CPLX 2.9} 36. g3 {[%emt 0:01:11] CPLX 2.9 27 (Ra1-d1) (=22)} Rf6 {[%emt 0:03:43] CPLX 3.1 5 (Nc4-e5) (=13)} 37. Rf1 {[%emt 0:00:27] CPLX 3.7 37 (Re1-d1) (=23)} Rf3 {[%emt 0:00:31] CPLX 3.5 30 (Re4-e5) (=14)} 38. a4 {[%emt 0:00:30] CPLX 3.4} Ke7 {[%emt 0:00:16] CPLX 3.4 37 (Nc4-e5) (=15)} 39. Rad1 {[%emt 0:00:34] CPLX 3.5 52 (b4-b5) (=23)} (39. b5 {might work better.}) 39... Nb2 $2 {[%emt 0:00:57] RELBLUND 204 (Nc4-e5) (=20)} (39... Ne5 $19 {...Rf8 is the strong threat.} 40. Rd4 Rxd4 41. cxd4 Nd7) 40. Ra1 {[%emt 0:00:30] RELBLUND 142 (Rd1-d2) (=26)} (40. Rd2 $1 $11 Nc4 41. Rd4) 40... Nc4 {[%emt 0:00:06] CPLX 3.5 159 (Re4-e5) (=24)} (40... Re5 $17 41. Ra2 Nc4) 41. Rad1 $1 {[%emt 0:00:10] RELBLUND=>BLUNDERREACT} Rf8 {[%emt 0:00:00] CPLX 3.3 0 (Nc4-e5) (=23)} 42. h3 {[%emt 0:00:00] CPLX 3.4 104 (a4-a5) (=28)} (42. a5 {was necessary.}) 42... h4 {[%emt 0:00:00][%cal Bh5h4,Bh4g3][%mdl 32] And now ...hxg3 would win. BESTDEEP} (42... gxh3 $2 43. Rh1 $19) 43. hxg4 {[%emt 0:00:00] CPLX 3.7 86 (Rd1-d4) (=29)} hxg3 {[%emt 0:00:00] EASY} 44. Rd4 {[%emt 0:00:00] CPLX 3.6 325 (g4-g5) (=37)} (44. g5 $142) 44... Rxf2+ {[%emt 0:00:00] CPLX 3.9=>BLUNDERREACT} 45. Rxf2 {[%emt 0:00:00] RECAPT} Rxe3+ {[%emt 0:00:00] EASY} ({Not} 45... gxf2 $2 46. Kxf2 (46. Rxe4+ $2 dxe4 47. Kxf2 Nb2 $19) 46... Re5 47. Rd3 $19) 46. Kf1 {[%emt 0:00:00] Black must now prevent Re2. EASY} gxf2 {[%emt 0:00:00] EASY} 47. Kxf2 {[%emt 0:00:00][%cal Od4c4] Strongly threatening Rxc4! RECAPT} Rxc3 {[%emt 0:00:00][%mdl 4096] Endgame KRN-KR. CPLX 2.6} 48. b5 {[%emt 0:00:00] CPLX 2.3 400 (g4-g5) (=43)} axb5 {[%emt 0:00:00] CPLX 2.7=>BLUNDERREACT} 49. axb5 {[%emt 0:00:00] RECAPT} cxb5 {[%emt 0:00:00] Hoping for ...b4. RECAPT} 50. Rxd5 {[%emt 0:00:00] CPLX 2.5 400 (g4-g5) (=50)} Ke6 {[%emt 0:00:00] CPLX 2.2 400 (b5-b4) (=27)} 51. Rd8 {[%emt 0:00:00] CPLX 2.5} Ne5 {[%emt 0:00:00] CPLX 2.3 48 (b5-b4) (=28)} 52. Rd6+ {[%emt 0:02:33] CPLX 2.3} Kf7 {[%emt 0:00:00] CPLX 2.3} 53. g5 {[%emt 0:01:45] CPLX 2.3} Rxc5 {[%emt 0:00:00] CPLX 2.4} 54. Rb6 {[%emt 0:00:05] RELBLUND 400 (Kf2-g3) (=54)} Nc4 {[%emt 0:00:00][%csl LRb6,LRg5] CPLX 2.0=>BLUNDERREACT. Black mates.} 55. Rb8 {[%emt 0:00:14] RELBLUND 6 (Rb6-f6) (=53)} Rxg5 {[%emt 0:00:00] CPLX 2.0} 56. Ke2 {[%emt 0:00:10] RELBLUND 1 (Kf2-f3) (=52)} Rd5 {[%emt 0:00:00]} 57. Kf3 {[%emt 0:00:50]} Nd6 {[%emt 0:00:00]} 58. Ke3 {[%emt 0:00:46]} Ke7 {[%emt 0:00:00]} 59. Rh8 {[%emt 0:00:15]} Kd7 {[%emt 0:00:00]} 60. Rh1 {[%emt 0:00:24]} Kc6 {[%emt 0:00:00]} 61. Rc1+ {[%emt 0:00:38]} Kb6 {[%emt 0:00:00]} 62. Rb1 {[%emt 0:00:06]} Kc5 {[%emt 0:00:00]} 63. Ke2 {[%emt 0:00:22]} b4 {[%emt 0:00:00]} 64. Rc1+ {[%emt 0:00:18]} Kb5 {[%emt 0:00:00]} 65. Rb1 {[%emt 0:00:19]} Ka4 {[%emt 0:00:00]} 66. Ra1+ {[%emt 0:00:15] [#]} Kb3 $1 {[%emt 0:00:00]} 67. Rb1+ {[%emt 0:00:13]} Kc3 {[%emt 0:00:00]} 68. Rc1+ {[%emt 0:00:07]} Kb2 {[%emt 0:00:00]} 69. Rc6 {[%emt 0:00:08]} b3 {[%emt 0:00:00][%cal Bb4b3,Bb3b2][%mdl 32]} 70. Ke3 {[%emt 0:00:07]} Kb1 {[%emt 0:00:00]} 71. Ke2 {[%emt 0:00:09]} b2 {[%emt 0:00:00]} 72. Rb6 {[%emt 0:00:25]} Kc2 {[%emt 0:00:00]} 73. Rc6+ {[%emt 0:00:11]} Kb3 {[%emt 0:00:00] Weighted Error Value: White=0.59/Black=0.30} 0-1